bitfinex/quotes_BTCUSD_20250916
["timestamp","ask_amount","ask_price","bid_price","bid_amount"]
[1757996038309,1.16755629,115360.0,115350.0,0.02640715]
[1757996038516,1.02203629,115360.0,115350.0,0.02640715]
[1757996038980,1.16555629,115360.0,115350.0,0.02640715]
[1757996039198,1.02103629,115360.0,115350.0,0.02640715]
[1757996039419,1.16046175,115360.0,115350.0,0.02640715]
[1757996039853,1.16246175,115360.0,115350.0,0.02960715]
[1757996040090,1.01494175,115360.0,115350.0,0.02960715]
[1757996040305,1.16046175,115360.0,115350.0,0.02960715]
[1757996040499,1.16246175,115360.0,115350.0,0.02960715]
[1757996040938,1.16146175,115360.0,115350.0,0.02640715]
[1757996041148,1.01594175,115360.0,115350.0,0.02640715]
[1757996041392,1.16242175,115360.0,115350.0,0.02640715]
[1757996044076,1.16764175,115360.0,115350.0,0.02640715]
[1757996044269,1.19248175,115360.0,115350.0,0.02640715]
[1757996044962,1.19148175,115360.0,115350.0,0.02640715]
[1757996045181,1.16142175,115360.0,115350.0,0.02640715]
[1757996045385,1.16242175,115360.0,115350.0,0.02640715]
[1757996045752,1.16142175,115360.0,115350.0,0.02640715]
[1757996047436,1.18626175,115360.0,115350.0,0.02640715]
[1757996047672,1.07389823,115360.0,115350.0,0.02640715]
[1757996047872,0.90234366,115360.0,115350.0,0.02640715]
[1757996048088,1.04882366,115360.0,115350.0,0.02960715]
[1757996048381,1.07629508,115360.0,115350.0,0.02640715]
[1757996049124,1.07529508,115360.0,115350.0,0.02640715]
[1757996049338,1.07529508,115360.0,115350.0,0.02740715]
[1757996049553,1.07329508,115360.0,115350.0,0.02740715]
[1757996051249,1.07529508,115360.0,115350.0,0.02740715]
[1757996051527,1.10335508,115360.0,115350.0,0.02740715]
[1757996053411,1.10335508,115360.0,115350.0,0.00124715]
[1757996055334,1.1908786,115360.0,115350.0,0.00124715]
[1757996055744,1.1907586,115360.0,115350.0,0.00124715]
[1757996055945,1.03934695,115360.0,115350.0,0.00124715]
[1757996056147,1.05557886,115360.0,115350.0,0.00124715]
[1757996056377,1.20093886,115360.0,115350.0,0.00124715]
[1757996056502,1.05557886,115360.0,115350.0,0.00124715]
[1757996056704,1.20093886,115360.0,115350.0,0.00124715]
[1757996056907,1.20193886,115360.0,115350.0,0.00124715]
[1757996057109,1.20193886,115360.0,115350.0,0.00024715]
[1757996057521,1.20194033,115360.0,115350.0,0.00024715]
[1757996060443,1.20802873,115360.0,115350.0,0.00024715]
[1757996061657,1.20803176,115360.0,115350.0,0.00024715]
[1757996062481,1.49179535,115360.0,115350.0,0.00024715]
[1757996062715,1.50803273,115360.0,115350.0,0.00024715]
[1757996069274,1.36267273,115360.0,115350.0,0.00024715]
[1757996069382,1.50787273,115360.0,115350.0,0.00024715]
[1757996070877,1.50787597,115360.0,115350.0,0.00024715]
[1757996071809,2.8190372,115360.0,115350.0,0.00024715]
[1757996072034,2.8482762,115360.0,115350.0,0.00024715]
[1757996072499,2.61498897,115360.0,115350.0,0.00024715]
[1757996072950,2.61606897,115360.0,115350.0,0.00024715]
[1757996073663,2.46978897,115360.0,115350.0,0.00024715]
[1757996073889,2.61606897,115360.0,115350.0,0.00024715]
[1757996074997,2.61606264,115360.0,115350.0,0.00024715]
[1757996075214,2.62966045,115360.0,115350.0,0.00024715]
[1757996075969,2.48337943,115360.0,115350.0,0.00024715]
[1757996076201,2.62965905,115360.0,115350.0,0.00024715]
[1757996076729,2.48337905,115360.0,115350.0,0.00024715]
[1757996076961,2.58649305,115360.0,115350.0,0.00024715]
[1757996081370,2.44025305,115360.0,115350.0,0.00024715]
[1757996081805,2.58661305,115360.0,115350.0,0.00024715]
[1757996083064,2.44025305,115360.0,115350.0,0.00024715]
[1757996083258,2.58661305,115360.0,115350.0,0.00024715]
[1757996084140,2.44025305,115360.0,115350.0,0.00024715]
[1757996084341,2.58657305,115360.0,115350.0,0.00024715]
[1757996085532,2.32842005,115360.0,115350.0,0.00024715]
[1757996085675,2.47466005,115360.0,115350.0,0.00024715]
[1757996086582,2.23034705,115360.0,115350.0,0.00024715]
[1757996087793,2.05313705,115360.0,115350.0,0.02707715]
[1757996088225,2.05314461,115360.0,115350.0,0.02707715]
[1757996088454,2.08309461,115360.0,115350.0,0.02707715]
[1757996088635,2.08309461,115360.0,115350.0,0.00228715]
[1757996089075,2.08309461,115360.0,115350.0,0.00024715]
[1757996089336,2.07234861,115360.0,115350.0,0.00024715]
[1757996089544,1.72616361,115360.0,115350.0,0.00024715]
[1757996089822,2.07229361,115360.0,115350.0,0.00024715]
[1757996090342,2.07229699,115360.0,115350.0,0.00024715]
[1757996092342,1.72616699,115360.0,115350.0,0.00024715]
[1757996092724,2.07982199,115360.0,115350.0,0.00024715]
[1757996095268,2.02562199,115360.0,115350.0,0.00024715]
[1757996099640,1.76474557,115360.0,115350.0,0.02578715]
[1757996100537,1.76478557,115360.0,115350.0,0.02578715]
[1757996100984,1.76478915,115360.0,115350.0,0.02578715]
[1757996101848,1.79488915,115360.0,115350.0,0.02578715]
[1757996102654,1.79484915,115360.0,115350.0,0.02578715]
[1757996103840,1.76478915,115360.0,115350.0,0.02578715]
[1757996104052,1.78967915,115360.0,115350.0,0.02578715]
[1757996104253,1.76474772,115360.0,115350.0,0.02578715]
[1757996105269,1.79269772,115360.0,115350.0,0.02578715]
[1757996106569,1.78963772,115360.0,115350.0,0.02578715]
[1757996106930,1.79269772,115360.0,115350.0,0.02578715]
[1757996107149,1.79484772,115360.0,115350.0,0.02578715]
[1757996109362,1.2312242,115360.0,115350.0,0.02578715]
[1757996109581,1.3771442,115360.0,115350.0,0.02878715]
[1757996111371,1.3771442,115360.0,115350.0,0.02578715]
[1757996115262,1.3823542,115360.0,115350.0,0.02578715]
[1757996115684,1.4072442,115360.0,115350.0,0.02578715]
[1757996116817,1.40723825,115360.0,115350.0,0.02578715]
[1757996117860,1.37713825,115360.0,115350.0,0.02578715]
[1757996119214,1.37613825,115360.0,115350.0,0.02578715]
[1757996119418,1.37713308,115360.0,115350.0,0.02578715]
[1757996119864,1.30945308,115360.0,115350.0,0.02578715]
[1757996120572,1.33749308,115360.0,115350.0,0.02578715]
[1757996120887,1.34055308,115360.0,115350.0,0.02578715]
[1757996121235,1.34055308,115360.0,115350.0,0.00236715]
[1757996123123,1.34055551,115360.0,115350.0,0.00236715]
[1757996124324,1.34055551,115360.0,115350.0,0.00024715]
[1757996124553,1.36802693,115360.0,115350.0,0.00024715]
[1757996125731,1.45555045,115360.0,115350.0,0.00024715]
[1757996126773,1.4555554,115360.0,115350.0,0.00024715]
[1757996130565,1.43931493,115360.0,115350.0,0.00024715]
[1757996130792,1.45555771,115360.0,115350.0,0.00024715]
[1757996131420,1.30963771,115360.0,115350.0,0.00024715]
[1757996131638,1.42776629,115360.0,115350.0,0.00220715]
[1757996131877,1.42772629,115360.0,115350.0,0.00220715]
[1757996132923,1.42772629,115360.0,115350.0,0.00024715]
[1757996136155,1.42163612,115360.0,115350.0,0.00024715]
[1757996136378,1.4277272,115360.0,115350.0,0.00024715]
[1757996137405,1.2821672,115360.0,115350.0,0.00220715]
[1757996137624,1.2821672,115360.0,115350.0,0.02572715]
[1757996137792,1.31010368,115360.0,115350.0,0.02875715]
[1757996137988,1.01010368,115360.0,115350.0,0.02875715]
[1757996138195,1.01010368,115360.0,115350.0,0.02572715]
[1757996138792,1.00910368,115360.0,115350.0,0.02572715]
[1757996139201,1.01010368,115360.0,115350.0,0.02572715]
[1757996140089,1.00910368,115360.0,115350.0,0.02572715]
[1757996140303,1.01010368,115360.0,115350.0,0.02572715]
[1757996141697,1.03897368,115360.0,115350.0,0.02572715]
[1757996141862,0.89341368,115360.0,115350.0,0.00220715]
[1757996142101,1.03893368,115360.0,115350.0,0.00220715]
[1757996142300,0.86454368,115360.0,115350.0,0.02572715]
[1757996142568,1.01006368,115360.0,115350.0,0.02875715]
[1757996143091,1.01006368,115360.0,115350.0,0.02572715]
[1757996143981,1.01002368,115360.0,115350.0,0.02572715]
[1757996144185,0.99642587,115360.0,115350.0,0.02572715]
[1757996145710,0.99542587,115360.0,115350.0,0.02572715]
[1757996145930,0.84994587,115360.0,115350.0,0.02572715]
[1757996146145,0.99542587,115360.0,115350.0,0.02572715]
[1757996146363,0.99642587,115360.0,115350.0,0.02572715]
[1757996146792,0.54700417,115360.0,115350.0,0.02875715]
[1757996147246,0.54091309,115360.0,115350.0,0.02875715]
[1757996147659,0.54091309,115360.0,115350.0,0.20214249]
[1757996147864,0.54091309,115360.0,115350.0,0.02875715]
[1757996148072,0.54091309,115360.0,115350.0,0.04609568]
[1757996148290,0.54091309,115360.0,115350.0,0.04406568]
[1757996148708,0.53991309,115360.0,115350.0,0.04406568]
[1757996151367,0.52367031,115360.0,115350.0,0.21745102]
[1757996151579,0.52367031,115360.0,115350.0,0.20314249]
[1757996153127,0.52367031,115360.0,115350.0,0.20011249]
[1757996155485,0.3503,115360.0,115350.0,0.20011249]
[1757996156771,0.52367031,115360.0,115350.0,0.20011249]
[1757996158573,0.52367031,115360.0,115350.0,0.34539249]
[1757996158796,0.52877031,115360.0,115350.0,0.20011249]
[1757996159222,0.55366031,115360.0,115350.0,0.20011249]
[1757996160988,0.55366031,115360.0,115350.0,0.00320715]
[1757996161201,0.55366031,115360.0,115350.0,0.00124715]
[1757996165265,0.55366031,115360.0,115350.0,0.17658249]
[1757996165480,0.55366031,115360.0,115350.0,0.19999249]
[1757996166272,0.55366031,115360.0,115350.0,0.17658249]
[1757996166495,0.55366031,115360.0,115350.0,0.14656715]
[1757996169812,0.55366031,115360.0,115350.0,0.31995249]
[1757996170646,0.55366031,115360.0,115350.0,0.14656715]
[1757996171287,0.55366031,115360.0,115350.0,0.14648715]
[1757996172665,0.55366031,115360.0,115350.0,0.00124715]
[1757996180054,0.72127661,115360.0,115350.0,0.00124715]
[1757996182012,0.83627155,115360.0,115350.0,0.00124715]
[1757996182228,0.83627155,115360.0,115350.0,0.00024715]
[1757996182229,1.14020265,115360.0,115350.0,0.00024715]
[1757996183379,1.14120265,115360.0,115350.0,0.00024715]
[1757996184253,1.44120265,115360.0,115350.0,0.00024715]
[1757996184711,0.54085676,115350.0,115340.0,0.0102]
[1757996184931,0.79931658,115350.0,115340.0,0.0102]
[1757996185170,0.80147658,115350.0,115340.0,0.0102]
[1757996185385,0.82636658,115350.0,115340.0,0.0102]
[1757996185601,0.91636874,115350.0,115340.0,0.0102]
[1757996185812,0.91646874,115350.0,115340.0,0.0102]
[1757996186033,0.91646874,115350.0,115340.0,0.0112]
[1757996186256,0.9164571,115350.0,115340.0,0.0112]
[1757996186775,0.7710571,115350.0,115340.0,0.0112]
[1757996186995,0.9164571,115350.0,115340.0,0.0112]
[1757996190581,0.7710571,115350.0,115340.0,0.0112]
[1757996190795,0.9164571,115350.0,115340.0,0.0112]
[1757996193656,0.91644646,115350.0,115340.0,0.0112]
[1757996195651,0.77104646,115350.0,115340.0,0.0112]
[1757996195831,0.91636646,115350.0,115340.0,0.0112]
[1757996197674,0.77104646,115350.0,115340.0,0.0112]
[1757996197904,0.91636646,115350.0,115340.0,0.0112]
[1757996201732,1.21636646,115350.0,115340.0,0.0112]
[1757996202336,1.51636646,115350.0,115340.0,0.0112]
[1757996205062,1.52996521,115350.0,115340.0,0.0112]
[1757996205747,1.45132521,115350.0,115340.0,0.0112]
[1757996205959,1.59656521,115350.0,115340.0,0.0112]
[1757996206604,1.45132521,115350.0,115340.0,0.0112]
[1757996207050,1.59660521,115350.0,115340.0,0.0112]
[1757996208823,1.59661117,115350.0,115340.0,0.0112]
[1757996212522,1.59661963,115350.0,115340.0,0.0112]
[1757996212750,2.09661963,115350.0,115340.0,0.0112]
[1757996214273,1.95133963,115350.0,115340.0,0.0112]
[1757996214532,2.09653963,115350.0,115340.0,0.0112]
[1757996216712,2.09649963,115350.0,115340.0,0.0112]
[1757996218075,1.95133963,115350.0,115340.0,0.0112]
[1757996218564,2.09645963,115350.0,115340.0,0.0112]
[1757996218998,1.95133963,115350.0,115340.0,0.0112]
[1757996219198,2.09645963,115350.0,115340.0,0.0112]
[1757996220608,2.09644791,115350.0,115340.0,0.0112]
[1757996221291,2.09644842,115350.0,115340.0,0.0112]
[1757996222398,1.95132842,115350.0,115340.0,0.0112]
[1757996222623,2.068977,115350.0,115340.0,0.0112]
[1757996223356,2.09644842,115350.0,115340.0,0.0112]
[1757996223803,2.08284967,115350.0,115340.0,0.0112]
[1757996224027,0.51340038,115340.0,115320.0,0.01086]
[1757996224246,0.31853541,115330.0,115320.0,0.0109071]
[1757996224467,0.34085409,115330.0,115320.0,0.0109071]
[1757996224683,0.34085409,115330.0,115320.0,0.0129371]
[1757996224904,0.35962711,115330.0,115320.0,0.0129371]
[1757996225129,0.36813089,115330.0,115320.0,0.0129371]
[1757996225348,0.36823089,115330.0,115320.0,0.0129371]
[1757996225586,0.36823089,115330.0,115320.0,0.0139371]
[1757996226013,0.36823089,115330.0,115320.0,0.0149371]
[1757996226482,0.36823089,115330.0,115320.0,0.0169371]
[1757996227350,0.39319089,115330.0,115320.0,0.0169371]
[1757996229116,0.39849089,115330.0,115320.0,0.0169371]
[1757996231523,0.39849089,115330.0,115320.0,0.0149071]
[1757996233619,0.48601441,115330.0,115320.0,0.0149071]
[1757996233845,0.85348583,115330.0,115320.0,0.0149071]
[1757996234072,1.15348583,115330.0,115320.0,0.0149071]
[1757996235249,1.15348583,115330.0,115320.0,0.0129071]
[1757996235468,1.15348583,115330.0,115320.0,0.0119071]
[1757996235735,1.15348583,115330.0,115320.0,0.0109071]
[1757996235952,1.15348583,115330.0,115320.0,0.0119071]
[1757996236408,1.15348583,115330.0,115320.0,0.0109071]
[1757996236652,1.15348583,115330.0,115320.0,0.0119071]
[1757996238080,1.45348583,115330.0,115320.0,0.0119071]
[1757996238847,1.53991999,115330.0,115320.0,0.0119071]
[1757996239091,1.53991999,115330.0,115320.0,1e-08]
[1757996239092,3.2913448,115330.0,115320.0,1e-08]
[1757996239325,0.84090186,115320.0,115310.0,0.0002]
[1757996239533,0.84090186,115320.0,115310.0,1e-08]
[1757996239534,4.64097384,115320.0,115310.0,1e-08]
[1757996239802,0.51346053,115300.0,115290.0,0.0002]
[1757996240031,1.76863121,115300.0,115290.0,0.0002]
[1757996240255,2.13340957,115300.0,115290.0,0.0002]
[1757996240482,2.13448957,115300.0,115290.0,0.0002]
[1757996240702,1.63682109,115300.0,115290.0,0.0002]
[1757996240932,1.48670609,115300.0,115290.0,0.0002]
[1757996241600,1.45004176,115300.0,115290.0,0.0002]
[1757996241829,1.60472176,115300.0,115290.0,0.0002]
[1757996242293,1.65572176,115300.0,115290.0,0.0002]
[1757996242972,1.62872753,115300.0,115290.0,0.0002]
[1757996243445,1.66072176,115300.0,115290.0,0.0012]
[1757996243673,1.76076158,115300.0,115290.0,0.0012]
[1757996243902,1.67432742,115300.0,115290.0,0.0012]
[1757996244127,1.64833319,115300.0,115290.0,0.0012]
[1757996244833,1.64533319,115300.0,115290.0,0.0012]
[1757996245064,1.19390184,115290.0,115280.0,1e-08]
[1757996245300,4.07270903,115290.0,115280.0,1e-08]
[1757996245528,2.74550603,115290.0,115280.0,1e-08]
[1757996245789,2.74560603,115290.0,115280.0,1e-08]
[1757996246037,2.77073261,115290.0,115280.0,1e-08]
[1757996246498,1.36349062,115280.0,115270.0,0.0002]
[1757996246723,2.63473951,115280.0,115270.0,0.00034053]
[1757996246947,2.66726577,115280.0,115270.0,0.00034053]
[1757996247145,2.69542577,115280.0,115270.0,0.00034053]
[1757996247427,2.85154577,115280.0,115270.0,0.00034053]
[1757996247653,2.85164577,115280.0,115270.0,0.00034053]
[1757996247886,1.11350568,115270.0,115260.0,0.000263]
[1757996248124,2.50873913,115270.0,115260.0,0.000263]
[1757996248362,2.51083913,115270.0,115260.0,0.000263]
[1757996248590,2.51083913,115270.0,115260.0,1e-08]
[1757996248591,2.53909913,115270.0,115260.0,1e-08]
[1757996248849,2.6706324,115270.0,115260.0,1e-08]
[1757996249531,2.30366502,115270.0,115260.0,1e-08]
[1757996249985,2.31066502,115270.0,115260.0,0.00100001]
[1757996250227,2.31066502,115270.0,115260.0,1e-08]
[1757996250454,0.86352073,115260.0,115250.0,0.0002]
[1757996250683,2.02279758,115260.0,115250.0,0.0002]
[1757996250931,1.77010484,115260.0,115250.0,0.0002]
[1757996251180,2.04857084,115260.0,115250.0,0.0002]
[1757996251367,2.14461884,115260.0,115250.0,0.0002]
[1757996252983,2.14661884,115260.0,115250.0,0.0002]
[1757996253687,1.83550084,115260.0,115250.0,0.00318]
[1757996253915,1.96426458,115260.0,115250.0,0.00318]
[1757996254146,1.96426458,115260.0,115250.0,0.0012]
[1757996254147,2.34892522,115260.0,115250.0,0.0012]
[1757996254365,2.34692522,115260.0,115250.0,0.0002]
[1757996254585,2.34692522,115260.0,115230.0,0.01020304]
[1757996254586,0.86355085,115240.0,115230.0,0.01020304]
[1757996254780,1.46559126,115240.0,115230.0,0.01020304]
[1757996255014,1.49446126,115240.0,115230.0,0.01020304]
[1757996255499,1.60061294,115240.0,115230.0,0.01020304]
[1757996255943,1.60061294,115240.0,115230.0,0.01120304]
[1757996256152,1.60058174,115240.0,115230.0,0.01020304]
[1757996256392,2.57311974,115240.0,115230.0,0.01020304]
[1757996256616,2.57411974,115240.0,115230.0,0.01020304]
[1757996256844,2.24123174,115240.0,115230.0,0.01020304]
[1757996257038,2.04310574,115240.0,115230.0,0.01020304]
[1757996257222,2.10174174,115240.0,115230.0,0.01020304]
[1757996257587,2.08813006,115240.0,115230.0,0.01020304]
[1757996258952,2.1539412,115240.0,115230.0,0.01020304]
[1757996259863,2.9018582,115240.0,115230.0,0.01020304]
[1757996260543,2.9018582,115240.0,115230.0,0.01218304]
[1757996260544,1.9461012,115240.0,115230.0,0.01218304]
[1757996260767,1.88690494,115240.0,115230.0,0.03790304]
[1757996261002,1.90051678,115240.0,115230.0,0.03790304]
[1757996261240,2.05847678,115240.0,115230.0,0.03790304]
[1757996261730,2.05755678,115240.0,115230.0,0.03790304]
[1757996261945,2.05755678,115240.0,115230.0,0.01218304]
[1757996262167,2.11155304,115240.0,115230.0,0.01218304]
[1757996262428,1.95666304,115240.0,115230.0,0.01020304]
[1757996262641,3.43093304,115240.0,115230.0,0.01020304]
[1757996262869,3.42993304,115240.0,115230.0,0.01020304]
[1757996263097,3.43093304,115240.0,115230.0,0.01020304]
[1757996263762,3.41430304,115240.0,115230.0,0.01020304]
[1757996264436,3.41458304,115240.0,115230.0,0.01020304]
[1757996265389,3.25626304,115240.0,115230.0,1e-08]
[1757996265619,0.89399216,115230.0,115220.0,0.0002]
[1757996265846,1.16201081,115230.0,115220.0,0.0002]
[1757996266068,1.19088081,115230.0,115220.0,0.0002]
[1757996266760,1.19092778,115230.0,115220.0,0.0002]
[1757996267654,1.69092778,115230.0,115220.0,0.0002]
[1757996268014,1.69092778,115230.0,115220.0,0.0022]
[1757996268427,1.69954277,115230.0,115220.0,0.0022]
[1757996269060,1.69954277,115230.0,115220.0,0.0012]
[1757996269324,1.70054277,115230.0,115220.0,0.0002]
[1757996270168,1.71415599,115230.0,115220.0,0.0002]
[1757996271984,1.55575599,115230.0,115220.0,0.0002]
[1757996272214,1.55575599,115230.0,115200.0,0.036893]
[1757996272215,0.51359604,115210.0,115200.0,0.036893]
[1757996272443,0.78181469,115210.0,115200.0,0.036893]
[1757996272673,0.78181469,115210.0,115200.0,0.038873]
[1757996273165,0.78191469,115210.0,115200.0,0.038873]
[1757996273650,0.64942206,115210.0,115200.0,0.038873]
[1757996273910,0.80814206,115210.0,115200.0,0.035723]
[1757996274364,0.80814206,115210.0,115200.0,0.038873]
[1757996274583,1.30914206,115210.0,115200.0,0.041873]
[1757996275707,1.31124206,115210.0,115200.0,0.016153]
[1757996275949,1.33847206,115210.0,115200.0,0.014173]
[1757996276167,1.36889832,115210.0,115200.0,0.014173]
[1757996276383,1.36897269,115210.0,115200.0,0.014173]
[1757996277017,1.36897269,115210.0,115200.0,0.016273]
[1757996277226,1.36897269,115210.0,115200.0,0.014173]
[1757996277884,1.36897269,115210.0,115200.0,0.016273]
[1757996278478,1.35282197,115210.0,115200.0,0.016273]
[1757996278680,1.36898122,115210.0,115200.0,0.016273]
[1757996279663,0.86898122,115210.0,115200.0,0.016273]
[1757996279881,0.68093122,115210.0,115200.0,0.042063]
[1757996280097,0.80918496,115210.0,115200.0,0.042063]
[1757996280307,0.80918496,115210.0,115200.0,0.038843]
[1757996280511,0.65050496,115210.0,115200.0,0.038843]
[1757996280766,0.65050496,115210.0,115200.0,0.042063]
[1757996280978,0.72170144,115210.0,115200.0,0.042063]
[1757996281592,0.83740496,115210.0,115200.0,0.016273]
[1757996281802,0.83740496,115210.0,115200.0,0.014173]
[1757996281919,0.86783122,115210.0,115200.0,0.014173]
[1757996282739,0.70911122,115210.0,115200.0,0.014173]
[1757996282941,0.86815122,115210.0,115200.0,0.014173]
[1757996284614,1.16815122,115210.0,115200.0,0.014173]
[1757996284828,1.16815122,115210.0,115200.0,0.00373739]
[1757996287387,1.21807122,115210.0,115200.0,0.00373739]
[1757996287834,0.81362618,115190.0,115180.0,0.004]
[1757996288044,1.68677203,115190.0,115180.0,0.004]
[1757996288256,1.71719829,115190.0,115180.0,0.004]
[1757996288487,1.74547829,115190.0,115180.0,0.004]
[1757996288660,1.86173511,115190.0,115180.0,0.004]
[1757996288839,1.86177511,115190.0,115180.0,0.004]
[1757996289034,1.88766511,115190.0,115180.0,0.00446965]
[1757996289250,1.88766511,115190.0,115180.0,0.00546965]
[1757996289663,1.88774511,115190.0,115180.0,0.00546965]
[1757996289860,1.72858511,115190.0,115180.0,0.00546965]
[1757996290338,1.88786511,115190.0,115180.0,0.00546965]
[1757996290531,1.88790511,115190.0,115180.0,0.00446965]
[1757996290731,1.88990511,115190.0,115180.0,0.00546965]
[1757996290938,1.73258511,115190.0,115180.0,0.00546965]
[1757996291115,1.84194511,115190.0,115180.0,0.00546965]
[1757996291561,1.84218511,115190.0,115180.0,0.00546965]
[1757996291814,1.84218511,115190.0,115180.0,0.00752965]
[1757996291989,1.85580284,115190.0,115180.0,0.00546965]
[1757996292471,1.69620284,115190.0,115180.0,0.00546965]
[1757996292875,1.85592284,115190.0,115180.0,0.00546965]
[1757996293102,1.85596284,115190.0,115180.0,0.00546965]
[1757996294638,1.85599152,115190.0,115180.0,0.00752965]
[1757996294855,1.85599152,115190.0,115180.0,0.00546965]
[1757996295317,1.69623152,115190.0,115180.0,0.00546965]
[1757996295536,1.85607152,115190.0,115180.0,0.00546965]
[1757996296919,1.85615152,115190.0,115180.0,0.00546965]
[1757996297416,0.93136844,115190.0,115180.0,0.03331965]
[1757996297644,1.07791071,115190.0,115180.0,0.03331965]
[1757996297871,1.25775071,115190.0,115180.0,0.03331965]
[1757996298096,1.41791071,115190.0,115180.0,0.03331965]
[1757996299397,1.41811071,115190.0,115180.0,0.03331965]
[1757996299880,0.77815071,115190.0,115180.0,0.03331965]
[1757996300021,0.61775071,115190.0,115180.0,0.03331965]
[1757996300253,1.11815071,115190.0,115180.0,0.03331965]
[1757996300604,0.95775071,115190.0,115180.0,0.03331965]
[1757996300854,1.11815071,115190.0,115180.0,0.03331965]
[1757996301019,1.11615071,115190.0,115180.0,0.03231965]
[1757996301209,1.02762719,115190.0,115180.0,0.03331965]
[1757996301640,0.53793289,115190.0,115180.0,0.2069609]
[1757996301841,0.69845289,115190.0,115180.0,0.2069609]
[1757996302044,0.69845289,115190.0,115180.0,0.03331965]
[1757996302256,0.52482671,115190.0,115180.0,0.2069609]
[1757996302483,0.52490671,115190.0,115180.0,0.2069609]
[1757996303046,0.51885925,115190.0,115180.0,0.2069609]
[1757996303298,0.35825925,115190.0,115180.0,0.2069609]
[1757996303548,0.35815925,115190.0,115180.0,0.2069609]
[1757996303772,0.01815925,115190.0,115180.0,0.2069609]
[1757996303937,0.002,115190.0,115180.0,0.2069609]
[1757996304413,0.17705925,115200.0,115190.0,0.17362618]
[1757996304576,0.51701925,115200.0,115190.0,0.20047618]
[1757996304745,0.35625925,115200.0,115190.0,0.20047618]
[1757996305789,0.01625925,115200.0,115190.0,0.20047618]
[1757996305994,0.45220274,115210.0,115190.0,0.20047618]
[1757996306195,0.53972626,115210.0,115190.0,0.17790618]
[1757996306455,0.53972626,115210.0,115190.0,0.19947618]
[1757996306677,0.34,115200.0,115190.0,0.19947618]
[1757996306898,0.35615925,115200.0,115190.0,0.19947618]
[1757996307309,0.34,115200.0,115190.0,0.19947618]
[1757996307547,0.34,115200.0,115190.0,0.20047618]
[1757996308483,0.34,115200.0,115190.0,0.20147618]
[1757996310081,0.34,115200.0,115190.0,0.20157618]
[1757996310309,0.1612,115220.0,115210.0,0.17359604]
[1757996310559,0.37898919,115230.0,115210.0,0.17575604]
[1757996310779,0.34,115220.0,115210.0,0.19832604]
[1757996311726,0.341,115220.0,115210.0,0.20153604]
[1757996313170,0.34,115220.0,115210.0,0.20163604]
[1757996313427,0.34,115220.0,115210.0,0.36279604]
[1757996313680,0.34,115220.0,115210.0,0.20163604]
[1757996313940,0.34,115220.0,115210.0,0.36279604]
[1757996314694,0.341,115220.0,115210.0,0.36579604]
[1757996314963,0.341,115220.0,115210.0,0.36879604]
[1757996315448,0.341,115220.0,115210.0,0.36871604]
[1757996315639,0.341,115220.0,115210.0,0.36875604]
[1757996316014,0.341,115220.0,115210.0,0.36879604]
[1757996316246,0.001,115220.0,115210.0,0.45631956]
[1757996316448,0.001,115220.0,115210.0,0.45627956]
[1757996317727,0.001,115220.0,115210.0,0.29515956]
[1757996317898,0.001,115220.0,115210.0,0.45627956]
[1757996318797,0.001,115220.0,115210.0,0.29515956]
[1757996319041,0.001,115220.0,115210.0,0.45631956]
[1757996324840,0.001,115220.0,115210.0,0.53144614]
[1757996326605,0.03224624,115240.0,115230.0,0.17356591]
[1757996326856,0.03224624,115240.0,115230.0,0.33468591]
[1757996327054,0.03752624,115240.0,115230.0,0.33584591]
[1757996327444,0.03752624,115240.0,115230.0,0.33378591]
[1757996327881,0.03752624,115240.0,115230.0,0.33606845]
[1757996328434,0.03224624,115240.0,115230.0,0.33706845]
[1757996328635,0.03431624,115240.0,115230.0,0.33706845]
[1757996328847,0.03431624,115240.0,115230.0,0.33806845]
[1757996329735,0.03224624,115240.0,115230.0,0.33806845]
[1757996329948,0.00862624,115240.0,115230.0,0.36063845]
[1757996330186,0.38292238,115250.0,115240.0,0.17355085]
[1757996330404,0.38499238,115250.0,115240.0,0.17365085]
[1757996331084,0.37971238,115250.0,115240.0,0.17581085]
[1757996331308,0.36470925,115250.0,115240.0,0.19838085]
[1757996331751,0.02470925,115250.0,115240.0,0.20159085]
[1757996331971,0.00861687,115250.0,115240.0,0.20159085]
[1757996332191,0.34,115260.0,115250.0,0.17353579]
[1757996332426,0.37972942,115260.0,115250.0,0.33649579]
[1757996333079,0.38500942,115260.0,115250.0,0.33649579]
[1757996333309,0.38500942,115260.0,115250.0,0.33659579]
[1757996333762,0.58820172,115260.0,115250.0,0.16066]
[1757996333989,0.58820172,115260.0,115250.0,0.17363579]
[1757996334230,0.58820172,115260.0,115250.0,0.33715579]
[1757996334499,0.59678375,115260.0,115250.0,0.33715579]
[1757996334730,0.42326302,115260.0,115250.0,0.33915579]
[1757996336127,0.36469145,115260.0,115250.0,0.34129579]
[1757996336418,0.38938145,115260.0,115250.0,0.34129579]
[1757996338212,0.38938145,115260.0,115250.0,0.18077579]
[1757996338437,0.38938145,115260.0,115250.0,0.34081579]
[1757996338623,0.36469145,115260.0,115250.0,0.34081579]
[1757996338833,0.36469145,115260.0,115250.0,0.36644579]
[1757996339249,0.36469145,115260.0,115250.0,0.36338579]
[1757996339913,0.38844145,115260.0,115250.0,0.18077579]
[1757996340128,0.39377145,115260.0,115250.0,0.33855579]
[1757996340358,0.56729218,115260.0,115250.0,0.33839579]
[1757996340577,0.59696375,115260.0,115250.0,0.33839579]
[1757996340793,0.42344302,115260.0,115250.0,0.33839579]
[1757996341136,0.42344302,115260.0,115250.0,0.33823579]
[1757996341776,0.42344302,115260.0,115250.0,0.33819579]
[1757996342140,0.59696375,115260.0,115250.0,0.33819579]
[1757996342812,0.42344302,115260.0,115250.0,0.33819579]
[1757996343257,0.59696375,115260.0,115250.0,0.0051]
[1757996343498,0.60301556,115260.0,115250.0,0.16442]
[1757996344223,0.60301556,115260.0,115250.0,0.16432]
[1757996344680,0.60311556,115260.0,115250.0,0.16432]
[1757996346281,0.57344399,115260.0,115250.0,0.16432]
[1757996346488,0.60311556,115260.0,115250.0,0.16432]
[1757996348288,0.60311556,115260.0,115250.0,0.16384]
[1757996348752,0.60311556,115260.0,115250.0,0.1638]
[1757996349835,0.59778556,115260.0,115250.0,0.33733579]
[1757996350074,0.39992326,115260.0,115250.0,0.33935579]
[1757996350288,0.39459326,115260.0,115250.0,0.33935579]
[1757996351669,0.56811399,115260.0,115250.0,0.33935579]
[1757996351938,0.39459326,115260.0,115250.0,0.33935579]
[1757996352211,0.37084326,115260.0,115250.0,0.33935579]
[1757996352750,0.37074326,115260.0,115250.0,0.33935579]
[1757996353316,0.37074326,115260.0,115250.0,0.36513579]
[1757996353567,0.37074326,115260.0,115250.0,0.33935579]
[1757996353796,0.39449326,115260.0,115250.0,0.33935579]
[1757996354062,0.39449326,115260.0,115250.0,0.33945579]
[1757996354286,0.38844145,115260.0,115250.0,0.33945579]